bitfinex/quotes_ETHUSD_20250130
["timestamp","ask_amount","ask_price","bid_price","bid_amount"]
[1738224878683,3.1403,3184.4,3183.9,0.775]
[1738224879145,6.7053,3184.4,3183.9,0.775]
[1738224879346,7.5265,3184.4,3183.5,0.7699]
[1738224883784,0.015,3184.1,3183.0,0.7646]
[1738224883990,3.14126,3183.5,3183.0,3.90628]
[1738224886001,3.14111,3183.6,3183.1,3.14157]
[1738224887393,3.14085,3183.9,3183.4,3.14127]
[1738224887691,6.28174,3183.9,3183.4,3.14127]
[1738224887909,3.14085,3183.9,3183.4,3.14127]
[1738224888059,3.14085,3183.9,3183.2,3.93057]
[1738224888391,3.141,3183.7,3183.2,3.93057]
[1738224889168,6.28172,3183.9,3183.3,3.97043]
[1738224889395,3.14084,3183.9,3183.3,3.97043]
[1738224889764,3.14085,3183.9,3183.3,3.97043]
[1738224890400,0.565,3184.2,3183.3,3.97043]
[1738224890621,3.1406,3184.1,3183.6,0.8291]
[1738224890975,3.1407,3184.0,3183.6,0.8291]
[1738224891696,3.1406,3184.1,3183.6,0.8291]
[1738224891995,3.14044,3184.3,3183.8,3.92733]
[1738224893196,3.14024,3184.5,3183.8,0.7865]
[1738224893369,0.0075,3184.7,3184.0,0.7623]
[1738224893370,3.14033,3184.4,3184.0,0.7623]
[1738224894096,3.14011,3184.6,3184.0,0.7623]
[1738224894471,3.14009,3184.7,3184.1,3.14054]
[1738224894668,3.14009,3184.7,3184.1,3.92084]
[1738224895487,3.14009,3184.7,3184.2,3.1405]
[1738224895805,3.14009,3184.7,3184.3,0.7855]
[1738224896697,3.13989,3184.9,3184.3,3.92587]
[1738224896877,3.13989,3184.9,3184.4,0.7893]
[1738224897059,3.13978,3185.0,3184.4,0.7893]
[1738224897264,3.13992,3184.8,3184.4,0.7893]
[1738224897690,6.27991,3184.8,3184.4,0.7893]
[1738224897962,3.14002,3184.7,3184.4,0.7893]
[1738224900501,3.13977,3185.0,3184.4,0.7893]
[1738224900502,3.13981,3184.9,3184.4,0.7893]
[1738224900687,3.13967,3185.1,3184.5,0.7945]
[1738224900890,3.13977,3185.0,3184.5,0.7945]
[1738224901399,3.55,3185.3,3184.5,0.7945]
[1738224901698,3.13997,3184.8,3184.5,0.7945]
[1738224901923,0.55,3185.3,3184.1,0.8216]
[1738224901924,0.565,3184.9,3184.1,0.8216]
[1738224902202,3.1404,3184.3,3183.7,0.8216]
[1738224902507,3.14061,3184.1,3183.7,0.8216]
[1738224902698,3.1404,3184.3,3183.7,0.8216]
[1738224903000,3.14026,3184.5,3183.8,3.95493]
[1738224903202,3.14032,3184.4,3183.8,3.95493]
[1738224903415,3.14046,3184.3,3183.8,3.95493]
[1738224903603,3.14015,3184.6,3184.0,3.14065]
[1738224903903,6.28034,3184.6,3184.1,0.812]
[1738224904083,3.14025,3184.5,3184.1,0.812]
[1738224904481,3.14015,3184.6,3184.1,0.812]
[1738224904896,3.14031,3184.4,3184.1,0.812]
[1738224906427,6.28035,3184.6,3184.1,0.812]
[1738224906910,3.13981,3184.9,3184.3,3.14038]
[1738224907130,3.13981,3184.9,3184.4,0.7776]
[1738224907809,3.13994,3184.8,3184.4,0.7776]
[1738224909388,3.13982,3184.9,3184.4,0.7776]
[1738224910575,3.13982,3184.9,3184.4,3.91785]
[1738224911278,3.13982,3184.9,3184.4,0.7776]
[1738224911473,3.13982,3184.9,3184.4,3.91789]
[1738224912511,3.13968,3185.1,3184.6,0.7855]
[1738224912821,3.13968,3185.1,3184.6,3.92559]
[1738224912822,6.27937,3185.1,3184.6,3.92559]
[1738224912976,3.1398,3185.0,3184.6,0.7855]
[1738224913581,3.13983,3184.9,3184.6,0.7855]
[1738224914111,3.1398,3185.0,3184.6,0.7855]
[1738224914314,3.015,3185.4,3184.9,0.7704]
[1738224914315,3.13938,3185.4,3184.9,0.7704]
[1738224914779,3.13943,3185.3,3184.9,0.7704]
[1738224915513,3.13928,3185.5,3184.9,0.7704]
[1738224915693,3.13919,3185.6,3185.0,3.13971]
[1738224915890,3.13931,3185.5,3184.9,3.91013]
[1738224916099,3.13936,3185.4,3184.9,3.91013]
[1738224917714,1.256841,3186.0,3185.2,2.98611908]
[1738224917887,3.13827,3186.5,3185.8,0.7593]
[1738224918101,3.9395,3186.7,3185.9,3.13873]
[1738224918434,3.13818,3186.6,3186.1,0.7593]
[1738224919394,3.13826,3186.5,3186.1,0.7593]
[1738224920215,3.13799,3186.8,3186.1,0.7593]
[1738224920429,3.13807,3186.7,3186.1,3.89792]
[1738224920588,3.13814,3186.6,3186.1,0.7593]
[1738224921132,1.256478,3187.3,3186.1,0.389806]
[1738224921331,3.13772,3187.1,3186.5,0.7598]
[1738224921936,3.13772,3187.1,3186.5,3.898]
[1738224923233,3.13764,3187.1,3186.5,0.7598]
[1738224923546,3.13745,3187.3,3186.5,0.7598]
[1738224923547,3.13802,3186.8,3186.5,0.7598]
[1738224924853,3.13777,3187.0,3186.5,0.7598]
[1738224925158,3.13738,3187.4,3186.7,3.13796]
[1738224925363,3.13751,3187.3,3186.7,3.13796]
[1738224925528,3.13738,3187.4,3186.7,3.13796]
[1738224925928,3.13745,3187.3,3186.7,3.13796]
[1738224926786,3.13738,3187.4,3186.7,6.27591]
[1738224926935,3.13722,3187.6,3186.9,3.13783]
[1738224927130,3.13722,3187.6,3187.0,3.13773]
[1738224928269,3.13726,3187.5,3186.8,1.439091]
[1738224928431,3.13751,3187.3,3186.8,0.8115]
[1738224928639,3.13771,3187.1,3186.8,0.8115]
[1738224928861,3.13771,3187.1,3186.2,3.13846]
[1738224929067,3.13787,3186.9,3186.3,3.95355]
[1738224929367,3.13794,3186.8,3186.3,0.8152]
[1738224930178,3.13806,3186.7,3186.3,0.8152]
[1738224930886,0.015,3186.8,3186.3,0.8152]
[1738224931390,3.13775,3187.0,3186.4,3.13827]
[1738224933798,3.15259,3187.2,3186.6,3.13813]
[1738224933944,3.13771,3187.1,3186.5,0.8157]
[1738224934375,3.13771,3187.1,3186.5,3.95393]
[1738224934791,6.13738,3187.4,3186.6,3.13806]
[1738224934944,3.13745,3187.3,3186.7,3.13798]
[1738224935579,3.13756,3187.2,3186.6,3.13806]
[1738224936561,3.15247,3187.3,3186.7,3.13798]
[1738224937174,3.13726,3187.5,3186.9,3.13782]
[1738224937378,3.13743,3187.4,3186.8,0.7977]
[1738224938190,3.13726,3187.5,3186.8,0.7977]
[1738224938344,3.1378,3187.0,3186.8,0.7977]
[1738224938676,3.13785,3186.9,3186.5,0.785]
[1738224939492,3.1378,3187.0,3186.5,0.785]
[1738224942178,0.015,3187.1,3186.5,3.92321]
[1738224942534,3.15268,3187.1,3186.5,3.92321]
[1738224942671,3.13774,3187.0,3186.5,3.92321]
[1738224942870,6.27557,3187.0,3186.5,0.785]
[1738224943688,3.13795,3186.8,3186.5,0.785]
[1738224944582,3.88795,3186.8,3186.2,0.793]
[1738224944781,3.13831,3186.5,3186.2,0.793]
[1738224946190,3.1387,3186.1,3185.7,0.7537]
[1738224947379,3.13878,3186.0,3185.7,0.7537]
[1738224947977,0.015,3186.0,3185.3,0.8181]
[1738224948179,3.13919,3185.6,3185.3,0.8181]
[1738224948490,3.13929,3185.5,3185.1,0.8181]
[1738224948694,3.13919,3185.6,3185.1,0.8181]
[1738224948936,6.2784,3185.6,3185.1,0.8181]
[1738224949248,3.13933,3185.4,3185.1,0.8181]
[1738224951954,3.13919,3185.6,3185.1,0.8181]
[1738224952526,3.13923,3185.5,3185.1,0.8181]
[1738224953228,3.13924,3185.5,3185.1,0.8181]
[1738224954341,3.13919,3185.6,3185.1,0.8181]
[1738224954706,3.13923,3185.5,3185.1,0.8181]
[1738224956743,3.13948,3185.3,3185.1,0.8181]
[1738224956949,6.27899,3185.3,3185.1,0.8181]
[1738224957110,3.13948,3185.3,3185.1,0.8181]
[1738224957310,3.13952,3185.2,3185.1,0.8181]
[1738224957831,3.13987,3184.9,3184.6,0.7943]
[1738224958839,3.13947,3185.3,3184.6,3.93432]
[1738224959067,3.13947,3185.3,3184.7,3.13991]
[1738224959224,6.27897,3185.3,3184.8,0.7734]
[1738224959429,3.13947,3185.3,3184.8,0.7734]
[1738224960224,3.13973,3185.0,3184.8,0.7734]
[1738224960425,3.13953,3185.2,3184.8,0.7734]
[1738224960624,0.7698,3186.3,3185.0,2.98611908]
[1738224960843,3.90795,3186.6,3185.8,3.1389]
[1738224961038,3.1384,3186.4,3185.7,3.13897]
[1738224961214,3.1384,3186.4,3185.8,3.1389]
[1738224961416,3.1384,3186.4,3185.8,0.8209]
[1738224961726,6.27681,3186.4,3185.8,0.8209]
[1738224962656,3.13846,3186.3,3185.8,0.8209]
[1738224963014,3.1384,3186.4,3185.8,0.8209]
[1738224963228,3.13855,3186.2,3185.8,0.8209]
[1738224964852,0.7698,3186.6,3185.1,0.61291191]
[1738224964853,0.015,3186.3,3185.4,0.7838]
[1738224965151,3.13885,3185.9,3185.4,0.7838]
[1738224965940,3.13894,3185.8,3185.4,0.7838]
[1738224966342,6.27763,3186.0,3185.4,0.7838]
[1738224966540,3.13881,3186.0,3185.4,0.7838]
[1738224966717,3.13884,3185.9,3185.4,0.7838]
[1738224967052,3.13898,3185.8,3185.4,0.7838]
[1738224967253,3.13909,3185.7,3185.1,3.92883]
[1738224967882,3.13892,3185.8,3185.2,3.13949]
[1738224969316,3.13911,3185.7,3185.1,0.7893]
[1738224969514,3.13911,3185.7,3185.1,3.9289]
[1738224970860,3.13911,3185.7,3185.1,3.92883]
[1738224971019,3.13911,3185.7,3185.1,7.06838]
[1738224971453,6.27822,3185.7,3185.1,3.92883]
[1738224971643,3.13915,3185.6,3185.1,0.7893]
[1738224972647,6.15404,3185.7,3185.1,3.92884]
[1738224972845,0.015,3185.7,3185.2,3.13944]
[1738224973165,0.61566755,3187.0,3184.4,6.12639908]
[1738224973166,3.13857,3186.2,3185.5,0.7919]
[1738224973455,3.13857,3186.2,3185.6,3.13912]
[1738224973758,3.13857,3186.2,3185.5,3.9311]
[1738224973759,3.1537,3186.1,3185.5,3.9311]
[1738224977340,3.13874,3186.0,3185.5,3.9311]
[1738224978734,6.27679,3186.4,3185.8,3.13888]
[1738224978951,3.13839,3186.4,3185.9,3.96902]
[1738224979277,3.13854,3186.2,3185.9,0.8302]
[1738224979427,3.7728,3185.4,3184.6,0.7843]
[1738224979628,0.565,3185.3,3183.9,0.7843]
[1738224979828,3.14031,3184.4,3184.0,0.392513]
[1738224980134,3.14018,3184.6,3183.9,0.7843]
[1738224980435,3.14023,3184.5,3183.9,3.92504]
[1738224980650,3.14018,3184.6,3183.9,7.06575]
[1738224980863,3.14018,3184.6,3183.9,3.92501]
[1738224981226,3.14031,3184.4,3183.9,3.92501]
[1738224981467,3.14045,3184.3,3183.9,0.7843]
[1738224983127,0.8269,3184.7,3183.9,0.7843]
[1738224983128,3.1407,3184.0,3183.9,0.7843]
[1738224983331,3.14102,3183.7,3183.4,0.8328]
[1738224985449,3.14119,3183.5,3183.4,0.8328]
[1738224985779,3.14119,3183.5,3183.1,0.7927]
[1738224986792,3.14141,3183.3,3183.1,0.7927]
[1738224987089,6.28247,3183.5,3183.1,0.7927]
[1738224987254,3.14131,3183.4,3183.1,0.7927]
[1738224990759,3.1411,3183.6,3183.1,0.7927]
[1738224991090,3.14098,3183.8,3183.2,3.14146]
[1738224991500,3.14098,3183.8,3183.1,3.93423]
[1738224991501,6.28148,3184.0,3183.3,3.14133]
[1738224991845,3.1407,3184.0,3183.4,3.14121]
[1738224992077,3.1407,3184.0,3183.5,0.7741]
[1738224992793,3.14802,3184.2,3183.5,3.9152]
[1738224993091,3.14062,3184.1,3183.6,3.14107]
[1738224993259,3.14797,3184.3,3183.6,3.14107]
[1738224993889,3.14797,3184.3,3183.7,3.14098]
[1738224994638,0.0075,3184.3,3183.7,3.14098]
[1738224994840,3.14052,3184.2,3183.7,3.14098]
[1738224997497,3.15507,3184.7,3183.7,3.88568]
[1738224997706,3.15507,3184.7,3183.9,3.14074]
[1738224997707,6.28056,3184.5,3183.9,3.14074]
[1738224997844,3.14027,3184.5,3183.9,3.14074]
[1738224998202,3.14037,3184.4,3183.9,3.14074]
[1738224999296,3.14042,3184.3,3183.8,0.7925]
[1738224999846,3.14042,3184.3,3183.8,3.93339]
[1738225000888,3.14023,3184.5,3184.0,3.14068]
[1738225002146,3.14757,3184.7,3184.0,3.14068]
[1738225002351,3.14012,3184.6,3184.1,3.14059]
[1738225002884,3.14024,3184.5,3184.1,0.8212]
[1738225003054,3.14032,3184.4,3184.1,0.8212]
[1738225003689,3.14041,3184.3,3184.1,0.8212]
[1738225004288,3.14032,3184.4,3184.1,0.8212]
[1738225006686,6.28032,3184.6,3184.1,0.8212]
[1738225006893,3.14013,3184.6,3184.1,0.8212]
[1738225007054,6.28033,3184.6,3184.1,0.8212]
[1738225007785,3.14013,3184.6,3184.1,0.8212]
[1738225007988,3.14024,3184.5,3184.1,0.8212]
[1738225008812,3.14031,3184.4,3184.1,0.8212]
[1738225009467,3.1405,3184.3,3184.1,0.8212]
[1738225009656,3.1405,3184.2,3184.1,0.8212]
[1738225010804,3.14041,3184.3,3184.1,0.8212]
[1738225012560,3.14041,3184.3,3183.8,3.95722]
[1738225013515,3.14053,3184.2,3183.8,0.8164]
[1738225013811,3.14047,3184.3,3183.8,0.8164]
[1738225015508,0.0075,3184.3,3183.8,0.8164]
[1738225015698,3.14066,3184.1,3183.8,0.8164]
[1738225017882,6.28135,3184.1,3183.8,0.8164]
[1738225018088,3.14066,3184.1,3183.8,0.8164]
[1738225018797,0.015,3184.5,3183.4,3.14125]
[1738225018798,3.14085,3183.9,3183.5,0.7802]
[1738225019890,3.14075,3184.0,3183.5,3.92138]
[1738225020086,3.14075,3184.0,3183.5,0.7802]
[1738225020700,3.9003,3184.4,3183.5,0.7802]
[1738225021017,3.9003,3184.4,3183.1,0.7802]
[1738225021018,3.14115,3183.6,3183.1,0.7802]
[1738225022434,3.14115,3183.6,3183.1,3.92178]
[1738225023080,3.90073,3184.0,3183.1,0.7802]
[1738225023413,3.14073,3184.0,3183.5,3.14119]
[1738225024089,3.14073,3184.0,3183.3,3.92157]
[1738225024307,3.1408,3183.9,3183.3,3.92157]
[1738225025184,3.14092,3183.8,3183.3,3.92157]
[1738225025383,3.141,3183.7,3183.3,0.7802]
[1738225026484,3.14111,3183.6,3183.3,0.7802]
[1738225026685,3.14803,3184.2,3183.3,0.7802]
[1738225026686,3.14096,3183.8,3183.3,0.7802]
[1738225027026,3.14096,3183.8,3183.3,3.92157]
[1738225027919,3.14086,3183.9,3183.4,3.14127]
[1738225028106,3.14045,3184.3,3183.7,0.8158]
[1738225028306,3.14024,3184.5,3183.9,3.14074]
[1738225028496,3.1404,3184.3,3183.9,0.8158]
[1738225030332,3.7624,3184.8,3183.9,0.8158]
[1738225030333,3.14065,3184.1,3183.9,0.8158]
[1738225031217,6.28133,3184.1,3183.9,0.8158]
[1738225031524,3.14045,3184.3,3183.9,0.8158]
[1738225031688,6.28055,3184.5,3183.9,3.9566]
[1738225031892,3.14031,3184.4,3183.9,3.9566]
[1738225032123,3.14043,3184.3,3183.9,0.8158]
[1738225033603,3.14039,3184.4,3183.9,4.666329]
[1738225034425,3.14025,3184.5,3184.0,3.14061]
[1738225034929,3.14025,3184.5,3184.1,0.7579]
[1738225035793,3.14005,3184.7,3184.1,0.7579]
[1738225035998,3.14005,3184.7,3184.1,3.89846]
[1738225036426,3.14005,3184.7,3184.2,3.14045]
[1738225036933,3.14005,3184.7,3184.1,3.89846]
[1738225037498,3.14005,3184.7,3184.2,3.14046]
[1738225037705,3.14005,3184.7,3184.1,3.89846]
[1738225037915,3.13985,3184.9,3184.5,0.8001]
[1738225038120,3.13937,3185.4,3184.8,3.13991]
[1738225038298,3.13937,3185.4,3185.0,0.8271]
[1738225038494,0.7973,3185.8,3185.0,0.8271]
[1738225038699,3.1394,3185.4,3185.0,0.8271]
[1738225040437,3.13912,3185.6,3185.0,3.96681]
[1738225040638,3.13908,3185.7,3185.2,3.1395]
[1738225041004,3.13908,3185.7,3185.0,3.96681]
[1738225041199,3.13913,3185.6,3185.0,3.96681]
[1738225041539,3.13897,3185.8,3185.0,3.96681]
[1738225041713,3.13897,3185.8,3185.1,3.13956]
[1738225042040,3.13918,3185.6,3185.0,3.96679]
[1738225042204,3.13918,3185.6,3185.0,4.28747135]
[1738225042613,3.13918,3185.6,3185.0,4.28744135]
[1738225042907,3.13918,3185.6,3185.1,3.13961]
[1738225045117,3.13918,3185.6,3185.0,4.28748135]
[1738225045317,3.13922,3185.5,3185.0,3.9668]
[1738225048343,3.13918,3185.6,3185.0,3.9668]
[1738225050830,0.7835,3187.1,3186.0,3.13864]
[1738225051031,3.13809,3186.7,3186.2,3.13851]
[1738225051230,3.13785,3186.9,3186.2,3.13846]
[1738225051430,3.13795,3186.8,3186.2,3.13846]
[1738225051610,3.13785,3186.9,3186.2,3.13846]
[1738225051817,3.13785,3186.9,3186.3,3.13842]
[1738225052143,0.7835,3187.1,3186.1,3.90076]
[1738225052345,3.13809,3186.7,3186.1,3.90076]
[1738225053354,3.13809,3186.7,3186.2,3.13846]
[1738225054314,3.13809,3186.7,3186.1,0.7622]
[1738225054515,3.13882,3186.0,3185.8,0.7696]
[1738225054845,3.1383,3186.5,3185.6,0.7696]
[1738225055045,3.13842,3186.4,3185.8,3.13888]
[1738225055346,3.13842,3186.4,3185.9,0.396398]
[1738225056143,3.13835,3186.4,3185.9,0.396398]
[1738225056472,3.1383,3186.5,3185.9,0.396398]
[1738225056624,3.13872,3186.1,3185.7,0.8251]
[1738225057647,3.13889,3185.9,3185.7,0.8251]
[1738225057848,3.13843,3186.3,3185.7,0.8251]
[1738225058150,3.13843,3186.3,3185.7,3.96409]
[1738225058459,3.13843,3186.3,3185.7,4.674402]
[1738225058840,6.27694,3186.3,3185.7,4.674402]
[1738225059149,3.13853,3186.2,3185.7,4.674402]
[1738225059718,3.13843,3186.3,3185.7,4.674402]
[1738225059926,3.13827,3186.5,3186.0,3.13872]
[1738225060338,3.13853,3186.2,3185.7,4.674422]
[1738225060538,3.13853,3186.2,3185.7,1.535412]
[1738225060946,3.13838,3186.4,3185.7,1.535412]
[1738225061145,3.13827,3186.5,3185.9,3.13882]
[1738225061359,3.13839,3186.4,3185.8,3.13886]
[1738225063061,0.7569,3186.6,3185.7,0.8251]
[1738225063062,0.7569,3186.6,3186.1,3.13862]
[1738225063853,3.1381,3186.7,3186.2,0.8092]
[1738225064052,3.1381,3186.7,3186.2,3.94773]
[1738225064757,3.1381,3186.7,3186.2,3.13853]
[1738225065142,3.1381,3186.7,3186.0,3.94783]
[1738225066270,6.27621,3186.7,3186.0,3.94783]
[1738225066432,3.1381,3186.7,3186.0,3.94783]
[1738225067068,3.13828,3186.5,3185.9,6.27753]
[1738225067942,0.7501,3186.9,3186.4,3.13827]
[1738225068139,0.7501,3186.9,3186.5,3.13822]
[1738225068345,3.13752,3187.3,3186.5,3.13822]
[1738225068346,0.8097,3187.1,3186.5,3.13822]
[1738225070344,3.94734,3187.1,3186.5,3.13822]
[1738225070959,0.8022,3187.1,3186.6,3.13807]
[1738225071169,3.92062,3187.3,3186.6,3.13807]
[1738225071356,0.0075,3187.2,3186.7,3.13797]
[1738225071972,3.14505,3187.2,3186.7,3.13797]
[1738225072192,3.92062,3187.3,3186.6,3.13813]
[1738225072505,3.13759,3187.2,3186.6,3.13813]
[1738225073386,3.13765,3187.1,3186.6,3.13813]
[1738225075400,3.13765,3187.1,3186.4,3.91529]
[1738225075571,3.13765,3187.1,3185.8,3.3143]
[1738225075572,3.13799,3186.8,3186.2,3.93378]
[1738225075769,3.13799,3186.8,3186.3,3.13841]
[1738225075985,6.27563,3187.0,3186.3,3.13841]
[1738225076175,3.1378,3187.0,3186.4,3.13828]
[1738225076866,3.13767,3187.1,3186.2,0.8213]
[1738225077198,3.13764,3187.1,3186.4,3.13833]
[1738225077570,3.13764,3187.1,3186.5,3.13822]
[1738225080408,3.13778,3187.0,3186.3,6.27678]
[1738225080584,3.13778,3187.0,3186.4,3.13832]
[1738225080907,3.13778,3187.0,3186.5,3.13821]
[1738225081904,3.13778,3187.0,3186.3,3.13835]
[1738225082071,3.13778,3187.0,3186.4,3.13832]
[1738225082667,0.565,3187.2,3186.2,0.8213]
[1738225082904,3.13792,3186.9,3186.2,3.95975]
[1738225083207,3.13795,3186.8,3186.2,3.95975]
[1738225083568,3.13792,3186.9,3186.3,3.13841]
[1738225083772,7.06671,3187.1,3186.4,3.13828]
[1738225084006,6.27541,3187.1,3186.4,3.13828]
[1738225084476,3.13777,3187.0,3186.4,3.13828]
[1738225085302,3.13784,3186.9,3186.4,3.13828]
[1738225085603,3.13784,3186.9,3186.3,3.13841]
[1738225086410,3.92929,3186.8,3186.3,3.13841]
[1738225086904,3.13829,3186.5,3185.9,3.90386]
[1738225087807,3.13836,3186.4,3185.9,3.90386]
[1738225088392,3.13826,3186.5,3185.9,3.90386]
[1738225088590,3.13815,3186.6,3186.0,3.13867]
[1738225088806,7.06732,3186.8,3186.2,3.13853]
[1738225089102,3.9293,3186.8,3186.2,3.13853]
[1738225089310,3.9293,3186.8,3186.0,3.13866]
[1738225089514,3.13816,3186.6,3185.9,3.90389]
[1738225089677,0.757,3186.3,3185.9,3.13879]
[1738225089884,3.89549,3186.3,3185.7,3.93472]
[1738225090388,7.03401,3186.3,3185.7,3.93472]
[1738225090622,3.89549,3186.3,3185.7,3.93472]
[1738225090803,0.0075,3186.4,3185.8,3.1389]
[1738225091013,0.0075,3186.4,3185.8,3.13892]
[1738225091308,0.0075,3186.4,3185.9,3.13881]
[1738225092109,0.0075,3186.4,3185.8,3.13892]
[1738225092337,3.13843,3186.3,3185.7,0.7957]
[1738225092645,0.7754,3186.1,3185.6,3.13906]
[1738225092789,0.7754,3186.1,3185.7,3.13898]
[1738225092993,0.7754,3186.1,3185.7,6.27796]
[1738225093294,3.13843,3186.3,3185.7,6.27796]
[1738225093565,0.7754,3186.4,3185.9,3.13882]
[1738225093832,0.7754,3186.4,3185.9,7.08488]
[1738225094136,0.7754,3186.4,3186.0,3.13873]
[1738225094489,0.0075,3186.6,3186.0,3.13873]
[1738225095623,0.0075,3186.6,3185.9,0.8073]
[1738225095826,3.13841,3186.4,3185.8,3.13887]
[1738225096017,0.0075,3186.6,3185.7,7.07382]
[1738225096018,3.13849,3186.3,3185.7,7.07382]
[1738225096223,3.91872,3186.5,3185.4,0.7959]
[1738225096224,0.7804,3186.4,3185.4,0.7959]
[1738225096522,3.13869,3186.1,3185.5,3.13916]
[1738225096927,3.13869,3186.1,3185.6,3.1391]
[1738225097128,3.13855,3186.2,3185.6,3.13904]
[1738225097532,3.13871,3186.1,3185.6,3.13904]
[1738225098024,3.13855,3186.2,3185.7,3.13901]
[1738225098429,3.13863,3186.1,3185.6,3.13904]
[1738225098627,3.13863,3186.1,3185.6,6.27811]
[1738225099039,3.13863,3186.1,3185.6,3.13904]
[1738225099241,3.1385,3186.3,3185.7,3.13896]
[1738225099413,3.91875,3186.4,3185.8,3.13885]
[1738225099620,0.0075,3186.3,3185.9,0.8135]
[1738225099813,3.14594,3186.3,3185.9,0.8135]
[1738225100015,0.0075,3186.3,3185.9,0.8135]
[1738225100335,0.833,3186.8,3186.3,3.13843]
[1738225100535,0.833,3186.8,3185.9,1.208752]
[1738225100536,3.13816,3186.6,3186.1,3.13862]
[1738225100712,0.7711,3186.4,3185.8,3.1389]
[1738225100911,0.7711,3186.4,3185.7,3.13893]
[1738225101214,3.90944,3186.4,3185.7,3.13893]
[1738225101426,3.90944,3186.4,3185.9,3.1388]
[1738225101944,3.13843,3186.3,3185.7,3.13893]
[1738225102101,3.13843,3186.3,3185.8,3.13891]
[1738225102440,0.7711,3186.4,3185.9,3.13879]
[1738225102612,3.13828,3186.5,3186.0,3.13872]
[1738225102805,3.13828,3186.5,3186.1,0.7976]
[1738225103317,3.13806,3186.7,3186.2,3.13851]
[1738225103847,3.13806,3186.7,3186.1,3.93615]
[1738225103848,3.13814,3186.6,3186.1,3.93615]
[1738225104350,3.13806,3186.7,3186.2,3.13852]
[1738225105262,0.7692,3186.8,3186.1,0.7976]
[1738225105405,3.89965,3186.8,3186.1,0.7976]
[1738225105740,3.89965,3186.8,3186.2,3.13847]
[1738225105916,3.89965,3186.8,3186.3,3.13837]
[1738225106115,3.13795,3186.8,3186.3,3.13837]
[1738225106326,3.93218,3187.0,3186.4,3.13825]
[1738225106529,3.93218,3187.0,3186.5,3.13817]
[1738225106708,3.93218,3187.0,3186.5,3.92077]
[1738225107134,3.13778,3187.0,3186.5,3.92077]
[1738225107342,3.91727,3187.2,3186.6,3.13808]
[1738225107542,0.7797,3187.5,3186.9,3.13778]
[1738225107747,3.13736,3187.4,3187.0,0.8265]
[1738225107911,3.1376,3187.2,3186.8,0.8265]
[1738225108108,0.8164,3186.8,3186.2,0.7977]
[1738225108433,3.13816,3186.6,3186.2,0.7977]
[1738225108839,3.13805,3186.7,3186.2,3.93619]
[1738225110047,0.8164,3186.8,3186.3,3.13842]
[1738225110236,3.95435,3186.8,3186.3,3.13842]
[1738225110738,3.13814,3186.6,3186.1,3.13859]
[1738225111116,3.13814,3186.6,3185.9,7.06282]
[1738225111322,3.13824,3186.5,3185.9,3.92404]
[1738225111634,3.13824,3186.5,3186.0,3.13872]
[1738225111928,6.27614,3186.7,3186.1,3.1386]
[1738225112129,3.13804,3186.7,3186.1,3.1386]
[1738225112650,3.13804,3186.7,3186.1,3.13856]
[1738225112811,3.13804,3186.7,3186.2,3.13849]
[1738225113206,0.8164,3186.8,3186.1,3.13856]
[1738225113506,3.13806,3186.7,3186.1,3.13856]
[1738225114008,3.13806,3186.7,3186.2,3.13853]
[1738225117453,0.8164,3186.8,3186.1,3.13856]
[1738225117627,3.13788,3186.9,3186.4,0.7951]
[1738225118038,6.27581,3186.9,3186.4,0.7951]
[1738225118243,3.13788,3186.9,3186.4,0.7951]
[1738225118545,6.27579,3186.9,3186.4,0.7951]
[1738225120963,3.13794,3186.8,3186.4,0.7951]
[1738225121758,3.13771,3187.1,3186.4,3.93341]
[1738225121926,3.13785,3186.9,3186.4,3.93341]
[1738225122858,3.13771,3187.1,3186.4,1.502279]
[1738225123026,3.13771,3187.1,3186.5,3.13815]
[1738225123225,3.13779,3187.0,3186.5,3.13815]
[1738225124127,6.27543,3187.1,3186.5,3.13815]
[1738225124340,3.1377,3187.1,3186.5,3.13815]
[1738225124864,3.1377,3187.1,3186.6,3.13813]
[1738225125226,6.27541,3187.1,3186.5,3.13815]
[1738225127657,3.13777,3187.0,3186.5,3.13815]
[1738225128746,3.1377,3187.1,3186.6,3.13805]
[1738225129069,3.1377,3187.1,3186.7,0.8067]
[1738225129670,6.27541,3187.1,3186.7,0.8067]
[1738225130166,3.1377,3187.1,3186.7,0.8067]
[1738225130972,3.13741,3187.4,3186.8,0.8186]
[1738225131276,3.13741,3187.4,3186.8,3.95653]
[1738225131440,3.13745,3187.3,3186.8,3.95653]
[1738225131774,3.13745,3187.3,3186.8,4.665986]
[1738225131953,3.13736,3187.4,3186.9,3.13782]
[1738225132158,3.13736,3187.4,3186.9,6.27559]
[1738225132736,3.13721,3187.6,3187.1,3.1376]
[1738225132931,3.13701,3187.8,3187.2,0.7508]
[1738225133267,3.13701,3187.8,3187.3,3.13738]
[1738225133567,3.13706,3187.7,3187.2,0.7508]
[1738225133770,3.13706,3187.7,3187.2,4.277176]
[1738225133977,3.13692,3187.9,3187.3,3.13739]
[1738225134141,3.13699,3187.8,3187.3,3.13739]
[1738225137603,3.13707,3187.7,3187.2,4.277176]
[1738225137958,3.13699,3187.8,3187.2,4.277176]
[1738225138515,6.27363,3188.0,3187.4,3.13732]
[1738225138808,3.13687,3187.9,3187.4,3.13732]